bitfinex/quotes_SOLUSD_20240614
["timestamp","ask_amount","ask_price","bid_price","bid_amount"]
[1718336523925,6.3169,147.52,147.5,6.19]
[1718336526329,16.1137,147.54,147.5,6.19]
[1718336526530,6.1556,147.56,147.52,6.19]
[1718336526738,6.1556,147.56,147.53,6.19]
[1718336528052,6.1556,147.56,147.52,6.19]
[1718336528232,6.1556,147.56,147.49,24.76]
[1718336528428,6.1556,147.56,147.46,0.17]
[1718336528657,6.1556,147.56,147.51,6.19]
[1718336530240,6.1556,147.56,147.52,6.19]
[1718336534563,6.1556,147.56,147.48,0.17]
[1718336534740,12.3456,147.56,147.5,6.19]
[1718336535341,6.1556,147.56,147.5,6.19]
[1718336535649,12.3456,147.56,147.5,6.19]
[1718336535958,6.1556,147.56,147.5,6.19]
[1718336536135,12.3456,147.56,147.5,6.19]
[1718336547242,12.3456,147.56,147.47,0.17]
[1718336547464,12.3456,147.56,147.5,6.19]
[1718336548255,6.1556,147.56,147.5,6.18]
[1718336548447,6.1556,147.56,147.51,6.18]
[1718336548877,6.1556,147.56,147.52,6.18]
[1718336550451,6.1556,147.56,147.49,0.34]
[1718336550452,6.1556,147.56,147.51,6.18]
[1718336550847,12.3356,147.56,147.5,6.18]
[1718336551553,6.1556,147.56,147.51,6.18]
[1718336552980,6.1556,147.56,147.5,6.18]
[1718336555859,6.1556,147.56,147.51,6.18]
[1718336557095,6.1556,147.56,147.52,6.18]
[1718336558789,6.1556,147.56,147.47,2.5089]
[1718336559083,12.3356,147.56,147.51,6.18]
[1718336559774,12.3356,147.56,147.5,6.18]
[1718336560007,12.3356,147.56,147.48,0.68]
[1718336560282,12.3356,147.56,147.5,6.18]
[1718336560672,12.3356,147.56,147.48,0.68]
[1718336560973,12.3356,147.56,147.5,6.18]
[1718336561566,12.2024868,147.56,147.51,6.18]
[1718336561893,6.0224868,147.56,147.51,6.18]
[1718336563265,6.0224868,147.56,147.48,0.68]
[1718336563464,6.0224868,147.56,147.51,6.18]
[1718336566067,6.0224868,147.56,147.48,0.68]
[1718336566377,6.0224868,147.56,147.51,6.18]
[1718336568990,6.0224868,147.56,147.48,0.68]
[1718336569170,6.0224868,147.56,147.51,6.18]
[1718336569488,12.2024868,147.56,147.48,0.68]
[1718336569686,12.2024868,147.56,147.5,6.18]
[1718336572697,12.2024868,147.56,147.48,0.68]
[1718336572871,12.2024868,147.56,147.5,6.18]
[1718336573070,12.2024868,147.56,147.48,0.68]
[1718336573295,12.2024868,147.56,147.47,2.5089]
[1718336573296,15.3955,147.53,147.45,2.5092]
[1718336573483,15.3955,147.53,147.47,6.18]
[1718336573999,15.3955,147.53,147.48,6.18]
[1718336574690,15.3955,147.53,147.49,6.18]
[1718336574990,15.3955,147.53,147.48,6.18]
[1718336576601,21.5755,147.53,147.48,6.18]
[1718336576981,21.5755,147.53,147.45,0.34]
[1718336577186,21.5755,147.53,147.43,15.5309]
[1718336577187,6.18,147.52,147.43,15.5309]
[1718336577374,6.18,147.52,147.46,6.18]
[1718336577776,6.18,147.52,147.43,15.5309]
[1718336577976,6.18,147.52,147.46,6.18]
[1718336578685,15.3955,147.53,147.46,6.18]
[1718336579096,15.3955,147.53,147.45,0.17]
[1718336579285,15.3955,147.53,147.46,6.18]
[1718336580606,15.3955,147.53,147.42,59.41418602]
[1718336580782,15.3955,147.53,147.45,6.18]
[1718336580977,6.18,147.5,147.41,29.67769916]
[1718336581181,6.18,147.5,147.42,2.5098]
[1718336581709,6.18,147.5,147.44,6.18]
[1718336583898,6.18,147.5,147.45,1.35611902]
[1718336584083,6.18,147.51,147.45,6.18]
[1718336584680,6.2197,147.52,147.44,2.5094]
[1718336584990,12.3997,147.52,147.44,2.5094]
[1718336585204,6.18,147.51,147.43,2.8496]
[1718336586214,6.2197,147.52,147.43,0.34]
[1718336586428,6.2197,147.52,147.46,2.5091]
[1718336586588,6.2197,147.52,147.45,2.5092]
[1718336586921,6.2197,147.52,147.44,0.17]
[1718336587223,6.2197,147.52,147.45,0.17]
[1718336587519,6.2197,147.52,147.45,0.71165132]
[1718336588312,6.2197,147.52,147.45,1.52602067]
[1718336588615,12.3997,147.52,147.45,1.52602067]
[1718336588985,6.18,147.51,147.45,1.52602067]
[1718336589916,6.18,147.51,147.44,0.17]
[1718336590115,6.18,147.5,147.44,6.18]
[1718336591510,6.2197,147.52,147.45,0.17]
[1718336591818,12.3997,147.52,147.46,6.18]
[1718336595097,6.18,147.51,147.44,0.17]
[1718336595791,6.18,147.51,147.45,6.18]
[1718336596798,6.18,147.51,147.46,6.18]
[1718336597940,6.2197,147.52,147.5,6.18]
[1718336598221,15.3955,147.53,147.5,6.18]
[1718336598587,6.0012,147.56,147.5,6.18]
[1718336598786,6.0012,147.56,147.52,6.18]
[1718336600418,6.0012,147.56,147.51,6.18]
[1718336600998,0.20900497,147.55,147.5,6.18]
[1718336602585,0.20900497,147.55,147.51,6.18]
[1718336603640,0.20900497,147.55,147.54,6.18]
[1718336603792,0.20900497,147.55,147.54,6.52]
[1718336603988,0.20900497,147.55,147.54,6.69]
[1718336604189,0.20900497,147.55,147.54,6.86]
[1718336605096,0.20900497,147.55,147.54,0.51]
[1718336605415,0.20900497,147.55,147.54,6.52]
[1718336611426,0.20900497,147.55,147.54,6.86]
[1718336612730,0.20900497,147.55,147.54,6.52]
[1718336613311,0.20900497,147.55,147.54,6.18]
[1718336614730,0.20900497,147.55,147.54,6.86]
[1718336620740,0.20900497,147.55,147.54,6.18]
[1718336624033,0.20900497,147.55,147.51,2.5082]
[1718336624227,0.20900497,147.55,147.54,6.18]
[1718336627565,0.20900497,147.55,147.53,2.5079]
[1718336627734,0.20900497,147.55,147.54,6.18]
[1718336635535,0.20900497,147.55,147.53,2.5079]
[1718336635736,0.20900497,147.55,147.54,6.18]
[1718336643683,0.20900497,147.55,147.54,10.21147337]
[1718336643842,0.20900497,147.55,147.54,10.72147337]
[1718336644556,0.20900497,147.55,147.54,10.71147337]
[1718336645059,0.20900497,147.55,147.54,9.3577]
[1718336653141,0.20900497,147.55,147.54,15.5277]
[1718336653347,0.20900497,147.55,147.54,20.5432]
[1718336653781,0.20900497,147.55,147.54,48.4065]
[1718336654661,6.2607,147.63,147.58,0.17]
[1718336654862,6.2607,147.63,147.6,6.17]
[1718336656189,6.2607,147.63,147.58,0.68]
[1718336662402,6.2607,147.63,147.56,24.68]
[1718336662594,12.4307,147.63,147.58,6.17]
[1718336664990,6.17,147.61,147.52,2.508]
[1718336665302,6.17,147.6,147.55,6.17]
[1718336666101,16.0922,147.62,147.49,6.17]
[1718336666302,16.0922,147.62,147.47,16.6607]
[1718336666303,6.17,147.58,147.52,6.17]
[1718336666679,6.17,147.58,147.49,6.17]
[1718336666680,6.17,147.58,147.53,6.17]
[1718336666892,6.17,147.58,147.51,2.5082]
[1718336667605,6.17,147.58,147.52,0.17]
[1718336668097,6.17,147.59,147.52,0.17]
[1718336668684,6.17,147.59,147.52,0.34]
[1718336669985,6.17,147.58,147.52,0.17]
[1718336670318,12.7013,147.58,147.51,0.17]
[1718336670616,12.7013,147.58,147.52,0.17]
[1718336671706,12.7013,147.58,147.52,6.34]
[1718336671911,12.7013,147.58,147.52,6.17]
[1718336672204,12.7013,147.58,147.51,0.34]
[1718336672511,15.2829,147.57,147.5,0.34]
[1718336673598,15.2829,147.57,147.5,2.8483]
[1718336673811,15.2829,147.57,147.51,2.6782]
[1718336674193,15.2829,147.57,147.52,0.17]
[1718336675907,15.2829,147.57,147.51,0.34]
[1718336677110,15.2829,147.57,147.51,2.8482]
[1718336682015,15.2829,147.57,147.52,2.5081]
[1718336682193,15.2829,147.57,147.53,0.17]
[1718336683087,15.2829,147.57,147.52,0.34]
[1718336690630,15.2829,147.57,147.53,6.17]
[1718336698518,15.2829,147.57,147.52,0.34]
[1718336701008,15.2829,147.57,147.53,6.17]
[1718336703003,15.2829,147.57,147.54,6.17]
[1718336703737,22.5823,147.65,147.57,0.17]
[1718336703926,22.5823,147.65,147.6,6.17]
[1718336704128,22.5823,147.65,147.59,0.17]
[1718336704338,22.5823,147.65,147.61,6.17]
[1718336704911,15.7433,147.69,147.6,0.17]
[1718336705132,15.7433,147.69,147.64,6.17]
[1718336705728,21.9133,147.69,147.64,6.17]
[1718336706308,15.7433,147.69,147.64,6.17]
[1718336706514,15.7433,147.69,147.66,6.17]
[1718336706923,15.9832,147.73,147.68,6.17]
[1718336707245,15.9832,147.73,147.69,6.17]
[1718336707726,6.17,147.72,147.64,0.17]
[1718336707929,6.17,147.71,147.63,0.34]
[1718336708233,15.9832,147.73,147.59,32.14830439]
[1718336708234,6.17,147.7,147.59,32.14830439]
[1718336708438,6.17,147.69,147.63,6.17]
[1718336708635,12.3878,147.68,147.63,6.17]
[1718336708836,22.035,147.67,147.58,16.5537]
[1718336709038,6.17,147.65,147.55,6.21562541]
[1718336709257,6.17,147.64,147.54,17.8968]
[1718336709550,6.17,147.64,147.58,6.17]
[1718336710950,6.17,147.63,147.57,0.17]
[1718336711118,6.17,147.63,147.57,0.51]
[1718336711319,6.17,147.63,147.58,6.17]
[1718336711738,6.17,147.63,147.57,6.68]
[1718336712355,6.17,147.63,147.53,41.58396916]
[1718336712356,6.17,147.63,147.53,5.32840966]
[1718336712649,6.17,147.61,147.55,6.17]
[1718336713022,28.4487,147.62,147.56,6.17]
[1718336713248,28.4487,147.62,147.53,2.5079]
[1718336713460,28.4487,147.62,147.57,6.17]
[1718336713667,28.4487,147.62,147.56,6.17]
[1718336714760,6.17,147.61,147.55,6.17]
[1718336715634,6.17,147.61,147.53,0.17]
[1718336715837,6.17,147.61,147.55,6.17]
[1718336716953,28.4487,147.62,147.53,3.1879]
[1718336717169,28.4487,147.62,147.56,6.17]
[1718336717933,22.2787,147.62,147.57,6.17]
[1718336719760,22.2787,147.62,147.58,6.17]
[1718336720060,22.2787,147.62,147.6,6.17]
[1718336722256,22.2787,147.62,147.57,0.34]
[1718336722429,28.4487,147.62,147.56,6.34]
[1718336723432,6.17,147.61,147.53,0.34]
[1718336723630,22.2787,147.62,147.55,6.17]
[1718336723631,6.17,147.6,147.55,6.17]
[1718336723827,22.2787,147.62,147.55,6.17]
[1718336724137,0.33333333,147.61,147.57,6.17]
[1718336726172,0.33333333,147.61,147.56,6.17]
[1718336728459,0.33333333,147.61,147.55,0.51]
[1718336728460,0.33333333,147.61,147.55,0.34]
[1718336728667,6.50333333,147.61,147.54,0.34]
[1718336728839,6.50333333,147.61,147.55,6.17]
[1718336730672,0.33333333,147.61,147.55,6.17]
[1718336730880,6.50333333,147.61,147.55,6.17]
[1718336731041,6.17,147.6,147.53,0.34]
[1718336731240,6.17,147.6,147.48,120.35]
[1718336731241,6.17,147.56,147.48,2.5087]
[1718336731466,6.17,147.55,147.46,12.5781]
[1718336731649,6.17,147.55,147.5,6.17]
[1718336732047,6.17,147.55,147.47,2.5089]
[1718336732247,21.4602,147.54,147.46,2.5091]
[1718336732477,6.5227,147.53,147.48,6.17]
[1718336732642,12.6927,147.53,147.45,2.5092]
[1718336732970,12.6927,147.53,147.48,6.17]
[1718336733272,12.6927,147.53,147.44,5.43143999]
[1718336733461,12.6927,147.53,147.48,6.17]
[1718336733772,12.6927,147.53,147.46,2.5091]
[1718336733976,12.6927,147.53,147.48,6.17]
[1718336734160,12.6927,147.53,147.48,0.17]
[1718336734654,12.6927,147.53,147.48,6.34]
[1718336735972,15.2902,147.54,147.5,6.17]
[1718336736153,15.2902,147.54,147.51,6.34]
[1718336737547,15.2902,147.54,147.51,6.17]
[1718336737748,15.2902,147.54,147.49,0.17]
[1718336737966,21.4602,147.54,147.49,0.34]
[1718336738280,21.4602,147.54,147.49,0.17]
[1718336738780,21.4602,147.54,147.49,6.34]
[1718336738989,15.2902,147.54,147.5,6.17]
[1718336741666,15.2902,147.54,147.52,6.17]
[1718336743964,15.2902,147.54,147.5,0.17]
[1718336744173,15.2902,147.54,147.5,0.68]
[1718336744359,15.2902,147.54,147.51,6.17]
[1718336744560,15.2902,147.54,147.5,6.17]
[1718336749192,15.2902,147.54,147.49,0.17]
[1718336749367,15.2902,147.54,147.51,6.17]
[1718336750578,15.2902,147.54,147.49,0.17]
[1718336750779,15.2902,147.54,147.43,51.64759507]
[1718336750970,6.17,147.53,147.47,6.17]
[1718336751683,6.17,147.53,147.48,6.17]
[1718336752493,6.17,147.53,147.44,0.17]
[1718336752705,6.17,147.53,147.48,6.17]
[1718336755663,15.2902,147.54,147.48,6.17]
[1718336755892,6.17,147.53,147.48,6.17]
[1718336760380,6.0836,147.52,147.48,6.17]
[1718336760590,6.0836,147.52,147.46,0.17]
[1718336760792,6.0836,147.52,147.46,0.51]
[1718336760990,6.0836,147.52,147.47,6.17]
[1718336762902,6.0836,147.52,147.49,6.17]
[1718336765083,6.0836,147.52,147.48,6.17]
[1718336766413,27.5975,147.54,147.49,0.17]
[1718336766617,15.2902,147.54,147.52,6.17]
[1718336767917,15.2902,147.54,147.49,0.68]
[1718336768102,15.2902,147.54,147.52,6.17]
[1718336768302,15.2902,147.54,147.49,0.68]
[1718336768621,15.2902,147.54,147.51,6.17]
[1718336769313,15.2902,147.54,147.52,6.17]
[1718336773520,6.1373,147.57,147.53,6.17]
[1718336773843,6.1373,147.57,147.49,11.8671]
[1718336773844,6.1373,147.57,147.54,6.17]
[1718336774116,6.1373,147.57,147.53,6.17]
[1718336774694,15.2468,147.59,147.56,6.17]
[1718336777624,15.2468,147.59,147.55,6.17]
[1718336779707,15.2468,147.59,147.56,6.17]
[1718336779908,15.2468,147.59,147.57,6.17]
[1718336780125,6.41,147.61,147.57,6.17]
[1718336781330,6.3978,147.67,147.57,2.5072]
[1718336781624,6.3978,147.67,147.61,6.17]
[1718336781826,12.5678,147.67,147.61,6.17]
[1718336782011,6.17,147.66,147.58,0.34]
[1718336782218,6.17,147.65,147.58,0.34]
[1718336782526,6.17,147.65,147.58,6.51]
[1718336782713,6.17,147.65,147.58,0.17]
[1718336782911,6.17,147.65,147.59,6.17]
[1718336783114,6.17,147.65,147.58,6.34]
[1718336783317,15.2719,147.64,147.58,6.34]
[1718336783534,15.2719,147.64,147.58,0.17]
[1718336783738,21.4419,147.64,147.58,6.34]
[1718336784609,6.2891,147.63,147.57,0.17]
[1718336784830,6.2891,147.63,147.5,26.8977]
[1718336784831,6.17,147.6,147.55,6.17]
[1718336785135,15.2719,147.59,147.55,6.17]
[1718336786010,15.2719,147.59,147.54,0.17]
[1718336786216,15.2719,147.59,147.54,6.17]
[1718336786435,21.4419,147.59,147.52,2.5081]
[1718336786627,21.4419,147.59,147.49,34.67870168]
[1718336786818,12.8075,147.58,147.52,6.17]
[1718336787024,6.17,147.56,147.49,2.5085]
[1718336787234,6.17,147.56,147.51,6.17]
[1718336788006,6.6375,147.58,147.51,6.17]
[1718336788328,6.6375,147.58,147.5,0.34]
[1718336788329,6.6375,147.58,147.54,6.17]
[1718336788827,6.6375,147.58,147.53,0.17]
[1718336789041,6.6375,147.58,147.53,0.34]
[1718336789253,15.2719,147.59,147.53,0.34]
[1718336789429,15.2719,147.59,147.57,6.17]
[1718336789743,15.2719,147.59,147.55,6.17]
[1718336790124,15.2719,147.59,147.54,6.51]
[1718336790645,15.2719,147.59,147.55,6.17]
[1718336790825,15.2719,147.59,147.54,2.8477]
[1718336791011,15.2719,147.59,147.55,0.34]
[1718336792244,15.2719,147.59,147.54,0.17]
[1718336792455,15.2719,147.59,147.51,20.0]
[1718336792456,15.2719,147.59,147.53,0.17]
[1718336792658,15.2719,147.59,147.53,3.0179]
[1718336792938,15.2719,147.59,147.54,0.17]
[1718336793146,15.2719,147.59,147.54,0.34]
[1718336793650,15.2719,147.59,147.55,0.17]
[1718336793943,15.2719,147.59,147.55,0.34]
[1718336798356,15.2719,147.59,147.54,0.17]
[1718336798517,15.2719,147.59,147.53,0.68]
[1718336802724,15.2719,147.59,147.55,0.17]
[1718336802942,15.2719,147.59,147.55,0.51]
[1718336807033,15.2719,147.59,147.53,0.34]
[1718336807234,15.2719,147.59,147.54,0.34]
[1718336807770,15.2719,147.59,147.54,0.17]
[1718336808069,15.2719,147.59,147.52,0.34]
[1718336808235,15.2719,147.59,147.53,0.17]
[1718336810930,15.2719,147.59,147.54,6.18]
[1718336824542,15.2719,147.59,147.53,0.34]
[1718336824742,15.2719,147.59,147.54,6.18]
[1718336827539,6.4862,147.62,147.55,0.34]
[1718336827745,6.4862,147.62,147.58,6.18]
[1718336828875,6.4862,147.62,147.57,0.17]
[1718336829062,6.4862,147.62,147.57,6.18]
[1718336840856,6.4862,147.62,147.55,0.17]
[1718336841086,6.4862,147.62,147.57,6.18]
[1718336841464,6.18,147.6,147.51,0.17]
[1718336841693,6.18,147.59,147.53,6.18]
[1718336843696,15.4523,147.61,147.53,6.18]
[1718336843903,15.4523,147.61,147.54,6.18]
[1718336844107,15.4523,147.61,147.55,6.18]
[1718336844403,6.18,147.6,147.55,6.18]
[1718336848507,21.6323,147.61,147.55,6.18]
[1718336850525,15.4523,147.61,147.53,0.17]
[1718336850719,6.18,147.59,147.53,6.18]
[1718336851615,15.4523,147.61,147.53,6.18]
[1718336851787,15.4523,147.61,147.5,2.5083]
[1718336851788,15.4523,147.61,147.54,6.18]
[1718336852408,15.4523,147.61,147.51,0.17]
[1718336852615,15.4523,147.61,147.54,6.18]
[1718336854201,15.4523,147.61,147.51,3.1882]
[1718336854388,15.4523,147.61,147.54,6.18]
[1718336855421,15.4523,147.61,147.53,6.18]
[1718336855918,15.4523,147.61,147.54,6.18]
[1718336864726,6.18,147.59,147.54,6.18]
[1718336866342,15.4523,147.61,147.54,6.18]
[1718336867830,15.4523,147.61,147.51,3.1882]
[1718336868150,15.4523,147.61,147.53,6.18]
[1718336872424,6.18,147.6,147.53,6.18]
[1718336873109,6.18,147.59,147.53,6.35]
[1718336874045,6.18,147.59,147.52,0.17]
[1718336874251,6.18,147.59,147.53,6.18]
[1718336878935,12.2423,147.58,147.48,22.93001145]
[1718336879115,15.1017,147.56,147.51,6.18]
[1718336879716,6.18,147.55,147.49,6.18]
[1718336879935,6.18,147.55,147.46,2.5091]
[1718336880143,6.18,147.54,147.48,6.18]
[1718336880644,6.18,147.54,147.47,2.5089]
[1718336880819,6.18,147.54,147.48,6.18]
[1718336881734,6.18,147.54,147.49,6.18]
[1718336881933,15.1017,147.56,147.5,6.18]
[1718336882120,6.18,147.55,147.5,6.18]
[1718336882643,21.2817,147.56,147.5,6.18]
[1718336884228,21.2817,147.56,147.49,0.34]
[1718336884452,21.2817,147.56,147.5,6.18]
[1718336886453,15.1017,147.56,147.48,0.34]
[1718336886746,15.1017,147.56,147.52,6.18]
[1718336887444,15.1017,147.56,147.54,6.18]
[1718336887648,6.0623,147.58,147.54,6.18]
[1718336890748,6.0623,147.58,147.53,6.35]
[1718336891949,21.488,147.56,147.47,29.66562442]
[1718336892149,6.18,147.55,147.49,6.18]
[1718336892453,21.488,147.56,147.5,6.18]
[1718336892668,21.488,147.56,147.48,2.5087]
[1718336892669,15.308,147.56,147.49,2.5086]
[1718336892829,15.308,147.56,147.51,6.18]
[1718336893172,15.308,147.56,147.52,6.18]
[1718336893688,15.308,147.56,147.5,0.17]
[1718336893859,21.488,147.56,147.46,2.5091]
[1718336894179,6.18,147.55,147.5,6.18]
[1718336896040,6.18,147.55,147.48,0.17]
[1718336896240,6.18,147.55,147.48,0.68]
[1718336896445,6.18,147.55,147.5,6.18]
[1718336897968,21.488,147.56,147.5,6.18]
[1718336901064,6.18,147.55,147.5,6.18]
[1718336903544,15.308,147.56,147.5,6.18]
[1718336903751,21.488,147.56,147.51,6.18]
[1718336904668,21.488,147.56,147.5,6.18]
[1718336907286,15.308,147.56,147.5,6.18]
[1718336907449,21.488,147.56,147.5,6.18]
[1718336909272,15.308,147.56,147.5,6.18]
[1718336909452,15.308,147.56,147.51,2.5082]
[1718336909652,15.308,147.56,147.54,6.18]
[1718336909852,6.0623,147.58,147.55,6.18]
[1718336910572,6.0623,147.58,147.53,0.17]
[1718336910875,6.0623,147.58,147.54,6.18]
[1718336911867,6.0623,147.58,147.52,0.34]
[1718336912174,6.0623,147.58,147.54,6.18]
[1718336912678,6.0623,147.58,147.53,6.18]
[1718336913650,6.0623,147.58,147.54,6.18]
[1718336924296,6.0623,147.58,147.52,0.34]
[1718336924493,6.0623,147.58,147.54,6.18]
[1718336925367,6.0623,147.58,147.52,2.5081]
[1718336925566,6.0623,147.58,147.54,6.18]
[1718336926891,6.0623,147.58,147.52,2.5081]
[1718336927074,6.0623,147.58,147.54,6.18]
[1718336929590,12.43871295,147.67,147.57,6.18]
[1718336929591,6.3818,147.62,147.57,6.18]
[1718336929764,6.3818,147.62,147.59,6.18]
[1718336930987,6.3818,147.62,147.56,0.34]
[1718336930988,6.3818,147.62,147.58,6.18]
[1718336936005,21.3884,147.61,147.51,8.6882]
[1718336936204,6.18,147.6,147.5,50.24593658]
[1718336936404,6.18,147.6,147.54,6.18]
[1718336936714,15.2084,147.61,147.5,5.48044585]
[1718336936881,6.18,147.59,147.53,6.18]
[1718336937082,6.18,147.59,147.49,5.37160465]
[1718336937284,6.18,147.58,147.52,6.18]
[1718336938201,6.18,147.58,147.49,27.2285]
[1718336938395,6.18,147.58,147.49,2.5085]
[1718336938603,6.18,147.58,147.5,0.68]
[1718336938805,6.18,147.58,147.52,6.18]
[1718336940092,6.18,147.58,147.5,3.1884]
[1718336940308,6.18,147.58,147.47,5.0178]
[1718336940309,6.18,147.56,147.47,2.5089]
[1718336940624,6.18,147.56,147.5,6.18]
[1718336940989,6.18,147.55,147.5,6.18]
[1718336941983,6.18,147.55,147.49,6.18]
[1718336943390,6.18,147.53,147.46,0.17]
[1718336943588,6.18,147.53,147.48,6.18]
[1718336944312,6.18,147.53,147.46,3.0191]
[1718336944512,6.18,147.52,147.42,22.828762]
[1718336944717,6.6289,147.51,147.46,6.18]
[1718336948016,6.6289,147.51,147.48,6.18]
[1718336948695,6.6289,147.51,147.49,6.18]
[1718336949007,6.6289,147.51,147.48,6.18]
[1718336950520,15.3807,147.54,147.5,0.17]
[1718336950741,15.3807,147.54,147.52,6.18]
[1718336950908,15.3807,147.54,147.49,0.34]
[1718336951107,15.3807,147.54,147.51,6.18]
[1718336953324,6.2252,147.56,147.52,6.18]
[1718336953625,15.91,147.58,147.55,6.18]
[1718336953838,6.2252,147.6,147.57,6.18]
[1718336954133,6.2252,147.6,147.58,6.18]
[1718336954333,15.91,147.62,147.58,6.18]
[1718336954853,15.91,147.62,147.57,6.18]
[1718336955474,15.91,147.62,147.58,6.18]
[1718336957241,22.09,147.62,147.56,6.18]
[1718336957410,22.09,147.62,147.54,0.17]
[1718336957617,22.09,147.62,147.56,6.18]
[1718336960140,6.18,147.6,147.53,0.17]
[1718336960472,6.18,147.6,147.55,6.18]
[1718336960616,6.18,147.61,147.55,6.18]
[1718336960817,15.91,147.62,147.56,6.18]
[1718336960818,22.09,147.62,147.56,6.18]
[1718336963375,22.09,147.62,147.54,0.17]
[1718336963544,15.91,147.62,147.56,6.18]
[1718336963862,6.18,147.61,147.56,6.18]
[1718336966660,15.91,147.62,147.56,6.18]
[1718336966867,6.18,147.61,147.56,6.18]
[1718336969063,6.18,147.61,147.55,6.18]
[1718336969757,15.91,147.62,147.51,0.17]
[1718336969955,6.18,147.59,147.53,6.18]
[1718336970343,15.91,147.62,147.53,6.18]
[1718336970543,15.91,147.62,147.54,6.18]
[1718336970746,6.18,147.6,147.55,6.18]
[1718336971147,6.18,147.61,147.55,6.18]
[1718336975141,15.91,147.62,147.51,0.68]
[1718336975341,15.91,147.62,147.55,6.18]
[1718336975542,6.18,147.61,147.55,6.18]
[1718336975766,22.09,147.62,147.56,6.18]
[1718336975970,15.91,147.62,147.58,6.18]
[1718336977048,15.91,147.62,147.57,6.18]
[1718336980082,31.77651936,147.7,147.58,0.34]
[1718336980083,21.6155,147.67,147.58,0.34]
[1718336980252,6.18,147.66,147.6,6.18]
[1718336980454,6.18,147.66,147.58,0.34]
[1718336981686,21.6155,147.67,147.58,0.34]
[1718336981687,6.18,147.65,147.58,0.34]
[1718336982185,6.18,147.65,147.59,6.18]
[1718336982977,21.6155,147.67,147.59,6.18]
[1718336983160,6.18,147.65,147.59,6.18]
[1718336983464,21.6155,147.67,147.59,6.18]
[1718336983655,6.18,147.65,147.59,6.18]
[1718336985503,6.18,147.64,147.55,2.5075]
[1718336985784,6.18,147.63,147.57,6.18]
[1718336986567,6.18,147.63,147.54,2.6777]
[1718336986779,22.5645,147.62,147.53,23.83887798]
[1718336986984,6.18,147.61,147.56,6.18]
[1718336987152,28.9898,147.62,147.56,6.18]
[1718336988074,28.9898,147.62,147.54,2.5077]
[1718336988258,28.9898,147.62,147.56,6.18]
[1718336990477,28.9898,147.62,147.54,0.17]
[1718336990678,28.9898,147.62,147.56,6.18]
[1718336992899,28.9898,147.62,147.54,0.17]